[Event "18th Charleroi Open-A 2019"]
[Site "Charleroi"]
[Date "2019.07.29"]
[Round "3.11"]
[White "Anciaux, Marc"]
[Black "Vernimmen, Pierre"]
[Result "1/2-1/2"]
[ECO "B92"]
[WhiteElo "2120"]
[BlackElo "1911"]
[Annotator "ChessBase"]
[PlyCount "89"]
[EventDate "2019.07.22"]
[EventType "swiss"]
[EventCountry "BEL"]
[SourceTitle "playchess.com"]
[Source "ChessBase"]
[SourceQuality "1"]
[TimeControl "40/5400+30:1800+30"]

1. e4 {[%emt 0:00:00]} c5 {[%emt 0:03:16]} 2. Nf3 {[%emt 0:00:00]} d6 {[%emt 0:00:06]} 3. d4 {[%emt 0:00:00]} cxd4 {[%emt 0:00:05]} 4. Nxd4 {[%emt 0:00:00]} Nf6 {[%emt 0:00:06]} 5. Nc3 {[%emt 0:00:11]} a6 {[%emt 0:00:13]} 6. Be2 {[%emt 0:00:11]} e5 {[%emt 0:00:07]} 7. Nb3 {[%emt 0:00:06]} Be7 {[%emt 0:00:06]} 8. O-O {[%emt 0:00:11]} O-O {[%emt 0:00:08]} 9. a4 {[%emt 0:01:01]} Be6 {[%emt 0:00:55]} 10. f4 {[%emt 0:00:58]} exf4 {[%emt 0:01:39]} 11. Bxf4 {[%emt 0:01:47]} d5 {[%emt 0:01:38]} 12. e5 {[%emt 0:09:55]} Ne4 {[%emt 0:02:51]} 13. Qd3 {[%emt 0:11:40]} Nxc3 {[%emt 1:25:20]} 14. Qxc3 {[%emt 0:07:38]} Nc6 {[%emt 0:00:00]} 15. Rad1 {[%emt 0:06:18]} Bg5 {[%emt 0:00:00]} 16. g3 {[%emt 0:14:28]} Rc8 {[%emt 0:00:00]} 17. Qe3 {[%emt 0:02:16]} Be7 {[%emt 0:00:00]} 18. h4 {[%emt 0:10:22]} Na5 {[%emt 0:00:00]} 19. Nd4 {[%emt 0:03:24]} Nc4 {[%emt 0:00:00]} 20. Bxc4 {[%emt 0:04:12]} Rxc4 {[%emt 0:00:00]} 21. b3 {[%emt 0:00:15]} Rc7 {[%emt 0:00:00]} 22. Bg5 {[%emt 0:00:27]} Bxg5 {[%emt 0:00:00]} 23. hxg5 {[%emt 0:02:27]} Bg4 {[%emt 0:00:00]} 24. Rd2 {[%emt 0:00:35]} Qd7 {[%emt 0:00:00]} 25. Rh2 {[%emt 0:02:42]} Rfc8 {[%emt 0:00:00]} 26. Rh4 {[%emt 0:03:45]} Rc3 {[%emt 0:00:00]} 27. Qf4 {[%emt 0:00:17]} Be6 28. Rf2 {[%emt 0:00:11]} Qe7 {[%emt 0:00:00]} 29. Rfh2 {[%emt 0:01:40]} Qa3 {[%emt 0:00:00]} 30. Rf2 {[%emt 0:11:07]} Qe7 {[%emt 0:00:00]} 31. Rxh7 {[%emt 0:01:34]} Kxh7 {[%emt 0:00:53]} 32. Qh4+ {[%emt 0:00:35]} Kg6 {[%emt 0:01:59]} 33. Rh2 {[%emt 0:00:15]} Rxg3+ {[%emt 0:00:07]} 34. Qxg3 {[%emt 0:03:31]} Qxg5 35. Rg2 {[%emt 0:00:56]} Qxg3 {[%emt 0:00:35]} 36. Rxg3+ {[%emt 0:00:01]} Kh7 {[%emt 0:00:29]} 37. Kf2 {[%emt 0:00:48]} g6 {[%emt 0:00:41]} 38. Ke2 {[%emt 0:00:15]} Kg7 {[%emt 0:00:23]} 39. Kd3 {[%emt 0:00:21]} Rh8 {[%emt 0:01:18]} 40. c4 {[%emt 0:01:39]} dxc4+ {[%emt 0:00:31]} 41. bxc4 {[%emt 0:30:02]} Rc8 {[%emt 0:30:23]} 42. Nxe6+ {[%emt 0:00:05]} fxe6 {[%emt 0:00:12]} 43. Kd4 {[%emt 0:00:19]} b6 {[%emt 0:00:00]} 44. Rb3 {[%emt 0:00:00]} Rc6 {[%emt 0:00:00]} 45. Rg3 {[%emt 0:00:00]} 1/2-1/2

[Event "18th Charleroi Open-A 2019"]
[Site "Charleroi"]
[Date "2019.07.29"]
[Round "3.12"]
[White "Roels, Frederik"]
[Black "Huynh, Laurent"]
[Result "0-1"]
[ECO "E16"]
[WhiteElo "1944"]
[BlackElo "2111"]
[Annotator "NA"]
[PlyCount "64"]
[EventDate "2019.07.22"]
[EventType "swiss"]
[EventCountry "BEL"]
[SourceTitle "playchess.com"]
[Source "ChessBase"]
[SourceQuality "1"]
[TimeControl "40/5400+30:1800+30"]

1. d4 {[%emt 0:00:07]} Nf6 {[%emt 0:00:00]} 2. c4 {[%emt 0:00:28]} e6 {[%emt 0:00:00]} 3. Nf3 {[%emt 0:00:24]} b6 {[%emt 0:00:09]} 4. g3 {[%emt 0:00:09]} Bb7 {[%emt 0:00:03]} 5. Bg2 {[%emt 0:00:06]} Bb4+ {[%emt 0:00:31]} 6. Bd2 {[%emt 0:00:44]} Be7 {[%emt 0:00:05]} 7. O-O {[%emt 0:00:32]} O-O {[%emt 0:00:14]} 8. d5 {[%emt 0:08:23]} exd5 {[%emt 0:12:25]} 9. Nh4 {[%emt 0:05:05]} Qc8 {[%emt 0:01:51]} 10. Nf5 {[%emt 0:02:06]} Bd8 {[%emt 0:00:32]} 11. cxd5 {[%emt 0:09:33]} Bxd5 {[%emt 0:01:21]} 12. e4 {[%emt 0:00:25]} Bb7 {[%emt 0:06:47]} 13. Bc3 {[%emt 1:08:28]} d6 {[%emt 0:03:42]} 14. Qd2 {[%emt 0:00:00]} Ne8 {[%emt 0:05:42]} 15. Bh3 {[%emt 0:00:00]} Nd7 {[%emt 0:06:57]} 16. Qf4 {[%emt 0:00:00]} Kh8 {[%emt 0:05:40]} 17. Nxg7 {[%emt 0:00:00]} Nxg7 {[%emt 0:02:34]} 18. Qh6 {[%emt 0:00:00]} f6 {[%emt 0:00:20]} 19. Nd2 {[%emt 0:00:00]} Be7 {[%emt 0:00:35]} 20. Nf3 {[%emt 0:00:00]} Rf7 {[%emt 0:03:52]} 21. Nh4 {[%emt 0:00:00]} Qd8 {[%emt 0:02:32]} 22. g4 {[%emt 0:00:00]} Nc5 {[%emt 0:04:06]} 23. g5 {[%emt 0:00:00]} Nge6 {[%emt 0:03:10]} 24. Ng6+ {[%emt 0:00:00]} Kg8 {[%emt 0:00:07]} 25. Nxe7+ {[%emt 0:00:00]} Qxe7 {[%emt 0:01:14]} 26. Bxf6 {[%emt 0:00:00]} Qf8 {[%emt 0:00:19]} 27. Qh4 {[%emt 0:00:00]} Ng7 {[%emt 0:02:13]} 28. f3 {[%emt 0:00:00]} Bc8 {[%emt 0:01:03]} 29. Bg2 {[%emt 0:00:00]} Nd7 {[%emt 0:00:31]} 30. Bc3 {[%emt 0:00:00]} Ne5 {[%emt 0:00:49]} 31. Qg3 {[%emt 0:00:00]} Nh5 {[%emt 0:00:35]} 32. Qh4 {[%emt 0:00:00]} Nf4 {[%emt 0:00:15]} 0-1

[Event "18th Charleroi Open-A 2019"]
[Site "Charleroi"]
[Date "2019.07.29"]
[Round "3.13"]
[White "Hafner, Christian"]
[Black "Van Mechelen, Jan"]
[Result "1/2-1/2"]
[ECO "A20"]
[WhiteElo "2071"]
[BlackElo "2218"]
[Annotator "ChessBase"]
[PlyCount "84"]
[EventDate "2019.07.22"]
[EventType "swiss"]
[EventCountry "BEL"]
[SourceTitle "playchess.com"]
[Source "ChessBase"]
[SourceQuality "1"]
[TimeControl "40/5400+30:1800+30"]

1. c4 {[%emt 0:00:00]} e5 {[%emt 0:04:32]} 2. g3 {[%emt 0:00:00]} Nf6 {[%emt 0:00:43]} 3. Bg2 {[%emt 0:00:02]} c6 {[%emt 0:00:38]} 4. d4 {[%emt 0:00:56]} exd4 {[%emt 0:00:20]} 5. Qxd4 {[%emt 0:00:07]} Na6 {[%emt 0:00:10]} 6. Nf3 {[%emt 0:02:32]} Bc5 {[%emt 0:00:16]} 7. Qe5+ {[%emt 0:11:11]} Be7 {[%emt 0:00:23]} 8. Nc3 {[%emt 0:04:28]} O-O {[%emt 0:01:07]} 9. O-O {[%emt 0:01:29]} Re8 {[%emt 0:00:16]} 10. Qd4 {[%emt 0:10:53]} Bc5 {[%emt 0:03:05]} 11. Qd1 {[%emt 0:03:32]} Nc7 {[%emt 0:04:08]} 12. a3 {[%emt 0:02:35]} d5 {[%emt 0:04:05]} 13. b4 {[%emt 0:00:40]} Be7 {[%emt 0:02:28]} 14. b5 {[%emt 0:02:59]} c5 {[%emt 0:04:06]} 15. cxd5 {[%emt 0:01:09]} Ncxd5 {[%emt 0:00:20]} 16. Nxd5 {[%emt 0:01:17]} Nxd5 {[%emt 0:00:50]} 17. Bb2 {[%emt 0:03:26]} Be6 {[%emt 0:05:05]} 18. Qc2 {[%emt 0:08:21]} Qc8 {[%emt 0:08:43]} 19. Ne5 {[%emt 0:03:36]} Nb6 {[%emt 0:12:49]} 20. a4 {[%emt 0:03:10]} a5 {[%emt 0:00:08]} 21. bxa6 {[%emt 0:01:26]} Rxa6 {[%emt 0:00:11]} 22. Rfc1 {[%emt 0:08:18]} f6 {[%emt 0:02:37]} 23. a5 {[%emt 0:01:51]} Nd7 {[%emt 0:03:19]} 24. Nxd7 {[%emt 0:02:33]} Qxd7 {[%emt 0:00:19]} 25. Be4 {[%emt 0:00:41]} f5 {[%emt 0:05:14]} 26. Rd1 {[%emt 0:00:27]} Rd6 {[%emt 0:00:08]} 27. Rxd6 {[%emt 0:00:59]} Bxd6 {[%emt 0:00:10]} 28. Rd1 {[%emt 0:02:46]} fxe4 {[%emt 0:00:25]} 29. Be5 {[%emt 0:05:41]} Bd5 {[%emt 0:00:21]} 30. Rxd5 {[%emt 0:04:45]} Rxe5 {[%emt 0:00:29]} 31. Rxe5 {[%emt 0:00:14]} Bxe5 {[%emt 0:00:10]} 32. Qxe4 {[%emt 0:00:06]} Bd6 {[%emt 0:15:35]} 33. Qd5+ {[%emt 0:00:37]} Kf8 {[%emt 0:00:13]} 34. e4 {[%emt 0:00:20]} Qe7 {[%emt 0:11:17]} 35. Qf5+ {[%emt 0:01:08]} Kg8 {[%emt 0:07:14]} 36. Qc8+ {[%emt 0:00:10]} Kf7 {[%emt 0:00:07]} 37. Qf5+ {[%emt 0:00:08]} Qf6 {[%emt 0:06:29]} 38. Qd5+ {[%emt 0:10:24]} Kf8 {[%emt 0:00:00]} 39. Kg2 {[%emt 0:00:38]} Qe7 {[%emt 0:00:00]} 40. Qf5+ {[%emt 0:00:12]} Kg8 {[%emt 0:00:00]} 41. Qc8+ {[%emt 0:30:19]} Kf7 {[%emt 0:03:10]} 42. Qf5+ {[%emt 0:00:00]} Kg8 {[%emt 0:03:44]} 1/2-1/2

[Event "18th Charleroi Open-A 2019"]
[Site "Charleroi"]
[Date "2019.07.29"]
[Round "3.14"]
[White "Van Malder, Dries"]
[Black "Van Uytven, Eric"]
[Result "1-0"]
[ECO "B40"]
[WhiteElo "2178"]
[BlackElo "2071"]
[Annotator "ChessBase"]
[PlyCount "75"]
[EventDate "2019.07.22"]
[EventType "swiss"]
[EventCountry "BEL"]
[SourceTitle "playchess.com"]
[Source "ChessBase"]
[SourceQuality "1"]
[TimeControl "40/5400+30:1800+30"]

1. e4 {[%emt 0:00:00]} c5 {[%emt 0:01:30]} 2. Nf3 {[%emt 0:00:00]} e6 {[%emt 0:00:26]} 3. c3 {[%emt 0:00:00]} Nf6 {[%emt 0:01:06]} 4. Bd3 {[%emt 0:00:00]} d5 {[%emt 0:06:02]} 5. e5 {[%emt 0:00:38]} Nfd7 {[%emt 0:03:00]} 6. Bc2 {[%emt 0:00:08]} Nc6 {[%emt 0:02:26]} 7. d4 {[%emt 0:00:54]} b6 {[%emt 0:17:57]} 8. O-O {[%emt 0:08:40]} Be7 {[%emt 0:07:28]} 9. a3 {[%emt 1:24:10]} Ba6 {[%emt 0:06:23]} 10. Re1 {[%emt 0:00:00]} Rc8 {[%emt 0:00:51]} 11. Bd3 {[%emt 0:00:00]} Bxd3 {[%emt 0:04:25]} 12. Qxd3 {[%emt 0:00:00]} O-O {[%emt 0:01:11]} 13. b4 {[%emt 0:00:00]} f6 {[%emt 0:18:18]} 14. exf6 {[%emt 0:00:00]} Nxf6 {[%emt 0:00:51]} 15. Bg5 {[%emt 0:00:00]} Ne4 {[%emt 0:10:23]} 16. Bxe7 {[%emt 0:00:00]} Qxe7 {[%emt 0:00:59]} 17. Nbd2 {[%emt 0:00:00]} Nxd2 {[%emt 0:01:52]} 18. Qxd2 {[%emt 0:00:00]} cxd4 {[%emt 0:03:56]} 19. cxd4 {[%emt 0:00:00]} a5 {[%emt 0:04:22]} 20. b5 {[%emt 0:00:00]} Na7 {[%emt 0:00:11]} 21. a4 {[%emt 0:00:00]} Rf6 {[%emt 0:01:08]} 22. Re3 {[%emt 0:00:00]} Rc7 {[%emt 0:01:42]} 23. Rae1 {[%emt 0:00:00]} Nc8 24. Ne5 {[%emt 0:00:00]} Nd6 {[%emt 0:00:46]} 25. Nc6 {[%emt 0:00:00]} Rxc6 {[%emt 0:01:21]} 26. bxc6 {[%emt 0:00:00]} Nc4 {[%emt 0:00:11]} 27. Qc3 {[%emt 0:00:00]} Qd6 {[%emt 0:00:46]} 28. c7 {[%emt 0:00:00]} Qxc7 {[%emt 0:04:29]} 29. Rxe6 {[%emt 0:00:00]} Rxe6 {[%emt 0:00:00]} 30. Rxe6 {[%emt 0:00:00]} Qd7 {[%emt 0:00:00]} 31. Qe1 {[%emt 0:00:00]} Kf7 {[%emt 0:00:00]} 32. Re2 {[%emt 0:00:00]} Qxa4 {[%emt 0:00:00]} 33. Re7+ {[%emt 0:00:00]} Kf8 {[%emt 0:00:04]} 34. h3 {[%emt 0:00:00]} Qc6 {[%emt 0:00:52]} 35. Qe2 {[%emt 0:00:00]} Qd6 {[%emt 0:01:02]} 36. Ra7 {[%emt 0:00:00]} Kg8 {[%emt 0:01:06]} 37. Qe8+ {[%emt 0:01:12]} Qf8 {[%emt 0:00:09]} 38. Qe6+ {[%emt 0:00:04]} 1-0

[Event "18th Charleroi Open-A 2019"]
[Site "Charleroi"]
[Date "2019.07.29"]
[Round "3.17"]
[White "Lacroix, Bruno"]
[Black "Uhoda, Philippe"]
[Result "1/2-1/2"]
[ECO "E61"]
[WhiteElo "2152"]
[BlackElo "2062"]
[Annotator "ChessBase"]
[PlyCount "118"]
[EventDate "2019.07.22"]
[EventType "swiss"]
[EventCountry "BEL"]
[SourceTitle "playchess.com"]
[Source "ChessBase"]
[SourceQuality "1"]
[TimeControl "40/5400+30:1800+30"]

1. d4 {[%emt 0:00:00]} Nf6 {[%emt 0:05:20]} 2. Nf3 {[%emt 0:00:00]} g6 {[%emt 0:00:14]} 3. c4 {[%emt 0:00:00]} Bg7 {[%emt 0:01:00]} 4. e3 {[%emt 0:00:00]} d6 {[%emt 0:01:49]} 5. Nc3 {[%emt 0:00:09]} O-O {[%emt 0:01:24]} 6. Be2 {[%emt 0:00:12]} c6 {[%emt 0:03:30]} 7. O-O {[%emt 0:00:29]} a5 {[%emt 0:01:14]} 8. Qc2 {[%emt 0:01:48]} Na6 {[%emt 0:05:28]} 9. a3 {[%emt 0:03:11]} Bd7 {[%emt 0:01:09]} 10. e4 {[%emt 0:03:39]} Qb8 {[%emt 0:01:19]} 11. h3 {[%emt 0:20:16]} e5 {[%emt 0:04:15]} 12. dxe5 {[%emt 0:00:07]} dxe5 {[%emt 0:00:09]} 13. Be3 b5 {[%emt 0:01:52]} 14. Rad1 {[%emt 0:07:32]} Rc8 {[%emt 0:05:22]} 15. cxb5 {[%emt 0:06:08]} cxb5 {[%emt 0:00:10]} 16. Qb1 {[%emt 0:00:06]} Bc6 {[%emt 0:15:12]} 17. g4 {[%emt 0:13:00]} b4 {[%emt 0:10:18]} 18. axb4 {[%emt 0:42:23]} Nxb4 {[%emt 0:02:38]} 19. Nd2 {[%emt 0:00:00]} Bb7 {[%emt 0:12:37]} 20. Nc4 {[%emt 0:00:00]} Ba6 {[%emt 0:00:12]} 21. Nb6 {[%emt 0:00:00]} Rxc3 {[%emt 0:00:49]} 22. bxc3 {[%emt 0:00:00]} Bxe2 {[%emt 0:00:09]} 23. Nxa8 {[%emt 0:00:00]} Bxf1 {[%emt 0:02:38]} 24. Kxf1 {[%emt 0:00:00]} Qxa8 {[%emt 0:00:33]} 25. cxb4 {[%emt 0:00:00]} axb4 {[%emt 0:00:18]} 26. Qxb4 {[%emt 0:00:00]} Bf8 {[%emt 0:00:11]} 27. Qb6 {[%emt 0:00:00]} Nxe4 {[%emt 0:06:36]} 28. Rd8 {[%emt 0:00:00]} Qa3 {[%emt 0:17:34]} 29. Qc6 Nd6 {[%emt 0:00:00]} 30. Ra8 {[%emt 0:00:00]} Qd3+ {[%emt 0:00:00]} 31. Kg2 {[%emt 0:00:00]} Kg7 {[%emt 0:00:00]} 32. Rd8 {[%emt 0:00:00]} Qe4+ {[%emt 0:00:00]} 33. Qxe4 {[%emt 0:00:00]} Nxe4 {[%emt 0:00:00]} 34. f3 {[%emt 0:00:00]} Nf6 {[%emt 0:00:00]} 35. Bg5 {[%emt 0:08:30]} Be7 {[%emt 0:00:00]} 36. Bxf6+ {[%emt 0:00:00]} Bxf6 {[%emt 0:00:00]} 37. Re8 {[%emt 0:00:00]} h5 {[%emt 0:02:20]} 38. Kg3 {[%emt 0:00:00]} hxg4 {[%emt 0:00:23]} 39. fxg4 {[%emt 0:00:00]} Bg5 {[%emt 0:01:39]} 40. Rxe5 {[%emt 0:00:00]} Bd8 {[%emt 0:00:15]} 41. Rd5 {[%emt 0:28:37]} Bc7+ {[%emt 0:30:54]} 42. Kf3 {[%emt 0:00:29]} Bb8 {[%emt 0:00:00]} 43. Ke4 {[%emt 0:00:00]} Bg3 {[%emt 0:00:00]} 44. Kd4 {[%emt 0:00:00]} Bf2+ {[%emt 0:00:00]} 45. Kc4 {[%emt 0:00:00]} Kf6 {[%emt 0:00:00]} 46. Kb5 {[%emt 0:00:00]} Ke6 {[%emt 0:00:00]} 47. Kc6 {[%emt 0:00:00]} Bg3 {[%emt 0:00:00]} 48. Rd3 {[%emt 0:00:00]} Be5 {[%emt 0:00:00]} 49. Re3 {[%emt 0:00:00]} f5 {[%emt 0:00:00]} 50. Kc5 {[%emt 0:00:00]} fxg4 {[%emt 0:00:00]} 51. hxg4 {[%emt 0:00:00]} Kf6 {[%emt 0:00:00]} 52. Re4 {[%emt 0:00:00]} Bh2 {[%emt 0:00:00]} 53. Kd4 {[%emt 0:00:00]} Bg1+ {[%emt 0:00:00]} 54. Kd3 {[%emt 0:00:00]} Kg5 {[%emt 0:00:00]} 55. Ke2 {[%emt 0:00:00]} Bh2 {[%emt 0:00:00]} 56. Kf3 {[%emt 0:00:00]} Kf6 {[%emt 0:00:00]} 57. Kg2 {[%emt 0:00:00]} Bb8 {[%emt 0:00:00]} 58. Kh3 {[%emt 0:00:00]} Kg5 {[%emt 0:00:00]} 59. Rb4 {[%emt 0:00:00]} Bc7 {[%emt 0:00:00]} 1/2-1/2

[Event "18th Charleroi Open-A 2019"]
[Site "Charleroi"]
[Date "2019.07.29"]
[Round "3.18"]
[White "Vanden Bussche, Steven"]
[Black "Dauw, Sterre"]
[Result "1/2-1/2"]
[ECO "A37"]
[WhiteElo "2061"]
[BlackElo "2148"]
[Annotator "ChessBase"]
[PlyCount "76"]
[EventDate "2019.07.22"]
[EventType "swiss"]
[EventCountry "BEL"]
[SourceTitle "playchess.com"]
[Source "ChessBase"]
[SourceQuality "1"]
[TimeControl "40/5400+30:1800+30"]

1. c4 {[%emt 1:30:30]} g6 {[%emt 0:02:27]} 2. g3 {[%emt 0:00:00]} c5 {[%emt 0:00:33]} 3. Bg2 {[%emt 0:00:00]} Bg7 {[%emt 0:00:11]} 4. Nc3 {[%emt 0:00:00]} Nc6 {[%emt 0:00:05]} 5. Nf3 {[%emt 0:00:00]} e6 {[%emt 0:00:25]} 6. O-O {[%emt 0:00:00]} Nge7 {[%emt 1:29:19]} 7. d3 {[%emt 0:00:00]} O-O {[%emt 0:00:30]} 8. Rb1 {[%emt 0:00:00]} d5 {[%emt 0:00:00]} 9. cxd5 {[%emt 0:00:00]} exd5 {[%emt 0:00:00]} 10. Bg5 {[%emt 0:00:00]} h6 {[%emt 0:01:30]} 11. Bd2 {[%emt 0:00:00]} Be6 {[%emt 0:00:00]} 12. a3 {[%emt 0:05:30]} b6 {[%emt 0:00:00]} 13. b4 {[%emt 0:00:00]} cxb4 {[%emt 0:00:00]} 14. axb4 {[%emt 0:00:00]} a5 {[%emt 0:00:00]} 15. bxa5 {[%emt 0:00:00]} bxa5 {[%emt 0:00:00]} 16. Na4 {[%emt 0:00:00]} Qd6 {[%emt 0:03:00]} 17. Be3 {[%emt 0:02:30]} Rfb8 {[%emt 0:00:00]} 18. Bc5 {[%emt 0:00:00]} Qd8 {[%emt 0:00:00]} 19. d4 {[%emt 0:01:00]} Nb4 {[%emt 0:00:00]} 20. Qd2 {[%emt 0:00:00]} Nec6 {[%emt 0:00:00]} 21. Rb2 {[%emt 0:00:00]} Bf5 {[%emt 0:00:00]} 22. Rc1 {[%emt 0:01:30]} Qe8 {[%emt 0:00:00]} 23. Ra1 {[%emt 0:00:00]} Be4 {[%emt 0:00:00]} 24. Nh4 {[%emt 0:00:00]} Bxg2 {[%emt 0:00:00]} 25. Nxg2 {[%emt 0:00:00]} Na6 {[%emt 0:00:00]} 26. Rxb8 {[%emt 0:00:00]} Rxb8 {[%emt 0:00:00]} 27. e3 {[%emt 0:00:00]} Nxc5 {[%emt 0:00:00]} 28. Nxc5 {[%emt 0:00:00]} Rb5 {[%emt 0:00:00]} 29. Qc3 {[%emt 0:00:00]} Bf8 {[%emt 0:06:30]} 30. Nd3 {[%emt 0:00:00]} a4 {[%emt 0:00:00]} 31. Rxa4 {[%emt 0:00:00]} Rb1+ {[%emt 0:00:00]} 32. Nge1 {[%emt 0:00:00]} Ne5 {[%emt 0:00:39]} 33. Ra1 {[%emt 0:00:00]} Nf3+ {[%emt 0:00:09]} 34. Kf1 {[%emt 0:00:00]} Nxh2+ {[%emt 0:00:05]} 35. Ke2 Rxa1 {[%emt 0:00:30]} 36. Qxa1 Ng4 {[%emt 0:00:30]} 37. Qa5 Qe6 {[%emt 0:00:30]} 38. Nf4 Qe4 {[%emt 0:00:30]} 1/2-1/2

[Event "18th Charleroi Open-A 2019"]
[Site "Charleroi"]
[Date "2019.07.29"]
[Round "3.19"]
[White "De Villers, Mourad"]
[Black "Miulescu, Gabriel"]
[Result "1-0"]
[ECO "A29"]
[WhiteElo "2140"]
[BlackElo "2020"]
[Annotator "ChessBase"]
[PlyCount "105"]
[EventDate "2019.07.22"]
[EventType "swiss"]
[EventCountry "BEL"]
[SourceTitle "playchess.com"]
[Source "ChessBase"]
[SourceQuality "1"]
[TimeControl "40/5400+30:1800+30"]

1. c4 {[%emt 0:00:00]} e5 {[%emt 0:00:00]} 2. g3 {[%emt 0:00:27]} Nf6 {[%emt 0:00:38]} 3. Bg2 {[%emt 0:00:25]} d5 {[%emt 0:00:22]} 4. cxd5 {[%emt 0:00:50]} Nxd5 {[%emt 0:00:35]} 5. Nc3 {[%emt 0:00:38]} Be6 {[%emt 0:04:00]} 6. Nf3 {[%emt 0:03:01]} Nc6 {[%emt 0:01:02]} 7. O-O {[%emt 0:02:45]} Be7 {[%emt 0:09:19]} 8. d4 {[%emt 0:02:58]} exd4 {[%emt 0:11:38]} 9. Nxd4 {[%emt 0:02:39]} Nxd4 {[%emt 0:11:41]} 10. Qxd4 {[%emt 1:21:17]} Nxc3 {[%emt 0:03:34]} 11. Qxc3 {[%emt 0:00:00]} O-O {[%emt 0:03:41]} 12. Bxb7 {[%emt 0:00:00]} Rb8 {[%emt 0:02:19]} 13. Bg2 {[%emt 0:00:00]} Bf6 {[%emt 0:01:54]} 14. Qc2 {[%emt 0:00:00]} Qc8 {[%emt 0:01:08]} 15. e4 {[%emt 0:00:00]} c5 {[%emt 0:06:23]} 16. Re1 {[%emt 0:00:00]} Bd4 {[%emt 0:02:07]} 17. Bf1 {[%emt 0:00:00]} Rb6 {[%emt 0:02:54]} 18. Bc4 {[%emt 0:00:00]} Bxc4 {[%emt 0:08:13]} 19. Qxc4 {[%emt 0:00:00]} Bxb2 {[%emt 0:00:27]} 20. Bxb2 {[%emt 0:00:00]} Rxb2 {[%emt 0:00:06]} 21. Rac1 {[%emt 0:00:00]} Qb7 {[%emt 0:09:37]} 22. a3 {[%emt 0:00:00]} Rc8 {[%emt 0:01:14]} 23. Red1 {[%emt 0:00:00]} h6 {[%emt 0:04:15]} 24. Rd5 {[%emt 0:00:00]} Rb5 {[%emt 0:01:43]} 25. Rcd1 {[%emt 0:00:00]} Rb1 26. Rxb1 {[%emt 0:00:00]} Qxb1+ {[%emt 0:00:51]} 27. Kg2 {[%emt 0:00:00]} Qb6 {[%emt 0:02:47]} 28. Rd7 {[%emt 0:00:00]} Rf8 {[%emt 0:01:28]} 29. Qd5 {[%emt 0:00:00]} Qa5 {[%emt 0:01:14]} 30. Qd3 {[%emt 0:01:11]} c4 {[%emt 0:01:58]} 31. Qxc4 {[%emt 0:01:08]} Qxa3 {[%emt 0:00:04]} 32. e5 {[%emt 0:01:15]} Qb2 {[%emt 0:02:45]} 33. Qd5 {[%emt 0:01:16]} a6 {[%emt 0:02:42]} 34. h4 {[%emt 0:00:28]} Qb5 {[%emt 0:04:21]} 35. Qxb5 {[%emt 0:00:42]} axb5 {[%emt 0:00:00]} 36. Rb7 {[%emt 0:00:09]} Re8 {[%emt 0:00:00]} 37. f4 {[%emt 0:00:30]} h5 {[%emt 0:00:00]} 38. Rxb5 {[%emt 0:00:41]} Ra8 {[%emt 0:00:00]} 39. Rb3 {[%emt 0:00:44]} Ra4 {[%emt 0:00:00]} 40. Kf3 {[%emt 0:01:31]} g6 {[%emt 0:00:21]} 41. g4 {[%emt 0:31:25]} hxg4+ {[%emt 0:30:25]} 42. Kxg4 {[%emt 0:00:16]} Kg7 {[%emt 0:01:40]} 43. Rb7 {[%emt 0:01:17]} Ra6 {[%emt 0:01:14]} 44. h5 {[%emt 0:03:11]} gxh5+ {[%emt 0:00:00]} 45. Kxh5 {[%emt 0:00:00]} Kf8 {[%emt 0:00:00]} 46. Kg5 {[%emt 0:00:00]} Rg6+ {[%emt 0:00:00]} 47. Kf5 {[%emt 0:00:00]} Ra6 {[%emt 0:00:00]} 48. Rd7 {[%emt 0:00:00]} Rb6 {[%emt 0:00:00]} 49. Rd6 {[%emt 0:00:00]} Rb4 {[%emt 0:00:00]} 50. Ra6 {[%emt 0:00:00]} Ke7 {[%emt 0:00:00]} 51. Ra7+ {[%emt 0:00:00]} Ke8 {[%emt 0:00:00]} 52. Kg5 {[%emt 0:00:00]} Rb5 {[%emt 0:00:00]} 53. Rc7 {[%emt 0:00:00]} 1-0

[Event "18th Charleroi Open-A 2019"]
[Site "Charleroi"]
[Date "2019.07.29"]
[Round "3.20"]
[White "Van Dijck, Bjarne"]
[Black "Werner, Ivan"]
[Result "1/2-1/2"]
[ECO "B22"]
[WhiteElo "2053"]
[BlackElo "2129"]
[Annotator "ChessBase"]
[PlyCount "71"]
[EventDate "2019.07.22"]
[EventType "swiss"]
[EventCountry "BEL"]
[SourceTitle "playchess.com"]
[Source "ChessBase"]
[SourceQuality "1"]
[TimeControl "40/5400+30:1800+30"]

1. e4 {[%emt 1:30:30]} c5 {[%emt 1:30:30]} 2. c3 {[%emt 0:00:30]} Nf6 {[%emt 0:00:30]} 3. e5 {[%emt 0:00:00]} Nd5 {[%emt 0:00:30]} 4. d4 {[%emt 0:00:00]} cxd4 {[%emt 0:00:00]} 5. cxd4 {[%emt 0:01:30]} d6 {[%emt 0:01:00]} 6. Nf3 {[%emt 0:00:30]} Nc6 {[%emt 0:00:00]} 7. Bc4 {[%emt 0:00:30]} Nb6 {[%emt 0:01:00]} 8. Bb3 {[%emt 0:00:30]} dxe5 {[%emt 0:00:30]} 9. d5 {[%emt 0:00:30]} Na5 {[%emt 0:00:30]} 10. Nc3 {[%emt 0:00:30]} f6 {[%emt 0:00:30]} 11. Be3 {[%emt 0:00:30]} g6 {[%emt 0:00:30]} 12. O-O {[%emt 0:00:30]} Bd7 {[%emt 0:00:30]} 13. Nd2 {[%emt 0:00:30]} Rc8 {[%emt 0:00:30]} 14. Rc1 {[%emt 0:00:30]} Bg7 {[%emt 0:00:30]} 15. Nce4 {[%emt 0:00:30]} Rxc1 {[%emt 0:00:00]} 16. Qxc1 {[%emt 0:00:30]} Nxb3 {[%emt 0:00:00]} 17. Nxb3 {[%emt 0:00:30]} Nxd5 {[%emt 0:01:30]} 18. Bxa7 {[%emt 0:00:30]} b6 {[%emt 0:00:30]} 19. Qc4 {[%emt 0:00:30]} Qa8 {[%emt 0:00:30]} 20. Rd1 {[%emt 0:00:30]} Be6 {[%emt 0:00:30]} 21. Bxb6 {[%emt 0:00:30]} Kf7 {[%emt 0:00:30]} 22. Nbc5 {[%emt 0:00:30]} Rc8 {[%emt 0:00:30]} 23. Qb3 {[%emt 0:00:30]} Rxc5 {[%emt 0:00:30]} 24. Nxc5 {[%emt 0:00:30]} Nf4 {[%emt 0:00:30]} 25. Qf3 {[%emt 0:00:30]} Bd5 {[%emt 0:00:30]} 26. Rxd5 {[%emt 0:00:30]} Nxd5 {[%emt 0:00:30]} 27. Qb3 {[%emt 0:00:30]} e6 {[%emt 0:00:30]} 28. Qb5 {[%emt 0:00:30]} Qxa2 {[%emt 0:00:30]} 29. Qd7+ {[%emt 0:00:30]} Ne7 {[%emt 0:00:30]} 30. h3 {[%emt 0:00:30]} Qd5 {[%emt 0:00:30]} 31. b4 {[%emt 0:00:30]} Qxd7 {[%emt 0:00:00]} 32. Nxd7 {[%emt 0:00:30]} Ke8 {[%emt 0:01:00]} 33. Nc5 {[%emt 0:00:30]} Nd5 {[%emt 0:00:30]} 34. Ba5 {[%emt 0:00:30]} Bf8 {[%emt 0:00:30]} 35. Ne4 {[%emt 0:00:30]} f5 {[%emt 0:00:30]} 36. Ng5 {[%emt 0:00:30]} 1/2-1/2